fUSD/lending_fUSD_20240505
["ID","MTS","AMOUNT","RATE_DAILY","PERIOD"]
[326444271,1714915850692,-1747.92,0.00032876,2]
[326444272,1714915850702,-1400.34,0.00032876,2]
[326444273,1714915850711,-3096.31,0.00032876,2]
[326444274,1714915850719,-500.0,0.00032876,2]
[326444275,1714915850728,-3405.8,0.00032876,2]
[326444276,1714915850738,-3405.8,0.00032876,3]
[326444277,1714915850747,-3405.8,0.00032876,4]
[326444278,1714915850755,-5969.29,0.00032876,2]
[326444279,1714915850764,-3405.8,0.00032876,5]
[326444280,1714915850773,-1015.77,0.00032876,2]
[326444281,1714915850782,-3405.8,0.00032876,6]
[326444282,1714915850791,-3405.8,0.00032876,7]
[326444283,1714915850800,-3405.8,0.00032876,8]
[326444284,1714915850809,-3405.8,0.00032876,9]
[326444285,1714915850818,-3405.8,0.00032876,10]
[326444286,1714915850828,-500.0,0.00032876,2]
[326444287,1714915850837,-1117.96,0.00032876,2]
[326444288,1714915850846,-784.12,0.00032876,2]
[326444289,1714915850855,-3405.8,0.00032876,11]
[326444290,1714915850864,-586.83,0.00032876,2]
[326444291,1714915850873,-500.0,0.00032876,2]
[326444292,1714915850882,-3405.8,0.00032876,12]
[326444293,1714915850892,-2175.8,0.00032876,2]
[326444294,1714915850901,-150.34,0.00032877,2]
[326444295,1714915850910,-37737.75,0.00032877,2]
[326444296,1714915850919,-56235.93,0.00032877,2]
[326444297,1714915850928,-321.99,0.00032877,2]
[326444298,1714915850937,-370.46,0.000329,2]
[326444299,1714915850946,-1000.0,0.000329,2]
[326444300,1714915850955,-829.83310112,0.00032999,3]
[326444301,1714915850965,-50000.0,0.00033,13]
[326444302,1714915850974,-1000.0,0.00033,4]
[326444303,1714915850984,-802.97,0.00033,2]
[326444304,1714915850993,-936.71,0.00033,2]
[326444305,1714915851002,-1681.253388,0.00033,2]
[326444306,1714915851012,-1000.0,0.00033,7]
[326444307,1714915851020,-938.54181325,0.00033066,2]
[326444308,1714915851029,-3405.8,0.00033149,15]
[326444309,1714915851038,-981.79,0.0003315,5]
[326444310,1714915851047,-2040.13,0.0003315,5]
[326444311,1714915851056,-731.26,0.0003315,5]
[326444312,1714915851065,-1079.74,0.0003315,5]
[326444313,1714915851074,-1337.71,0.0003315,5]
[326444314,1714915851083,-500.0,0.0003315,5]
[326444315,1714915851093,-876.4,0.0003315,5]
[326444316,1714915851101,-3101.41,0.0003315,5]
[326444317,1714915851111,-627.2,0.0003315,5]
[326444318,1714915851119,-594.18,0.0003315,5]
[326444319,1714915851129,-989.83,0.0003315,5]
[326444320,1714915851138,-597.1,0.0003315,5]
[326444321,1714915851148,-500.0,0.0003315,5]
[326444322,1714915851157,-1689.15,0.0003315,5]
[326444323,1714915851166,-2343.43,0.0003315,5]
[326444324,1714915851175,-2302.68,0.0003315,5]
[326444325,1714915851184,-642.33,0.0003315,5]
[326444326,1714915851194,-500.0,0.0003315,5]
[326444327,1714915851208,-1805.51,0.0003315,5]
[326444328,1714915851218,-500.0,0.0003315,5]
[326444329,1714915851227,-500.0,0.0003315,5]
[326444330,1714915851238,-782.5,0.0003315,5]
[326444331,1714915851247,-1353.31,0.0003315,5]
[326444332,1714915851256,-3452.97,0.0003315,5]
[326444333,1714915851265,-500.0,0.0003315,5]
[326444334,1714915851274,-1480.66,0.0003315,5]
[326444335,1714915851283,-818.96,0.0003315,5]
[326444336,1714915851292,-500.0,0.0003315,5]
[326444337,1714915851302,-2042.7,0.0003315,5]
[326444338,1714915851311,-500.0,0.0003315,5]
[326444339,1714915851321,-1939.6,0.0003315,5]
[326444340,1714915851330,-1595.12,0.0003315,5]
[326444341,1714915851339,-500.0,0.0003315,5]
[326444342,1714915851348,-503.45908891,0.0003315,5]
[326444343,1714915851357,-581.13,0.0003315,5]
[326444344,1714915851367,-3387.56,0.0003315,5]
[326444345,1714915851376,-880.76,0.0003315,5]
[326444346,1714915851385,-1944.07,0.0003315,5]
[326444347,1714915851395,-500.0,0.0003315,5]
[326444348,1714915851404,-806.39,0.0003315,5]
[326444349,1714915851413,-724.09,0.0003315,5]
[326444350,1714915851423,-2108.93,0.0003315,5]
[326444351,1714915851432,-1670.81,0.0003315,5]
[326444352,1714915851441,-500.0,0.0003315,5]
[326444353,1714915851450,-1039.87,0.0003315,5]
[326444354,1714915851459,-1638.75,0.0003315,5]
[326444355,1714915851469,-2155.45,0.0003315,5]
[326444356,1714915851478,-586.38496222,0.0003315,5]
[326444357,1714915851488,-500.0,0.0003315,5]
[326444358,1714915851497,-772.66,0.0003315,5]
[326444359,1714915851506,-1025.2,0.0003315,5]
[326444360,1714915851515,-1717.6,0.0003315,5]
[326444361,1714915851524,-1651.01,0.0003315,5]
[326444362,1714915851533,-1939.75,0.0003315,5]
[326444363,1714915851542,-1227.88,0.0003315,5]
[326444364,1714915851551,-646.13977294,0.0003315,5]
[326444365,1714915851561,-1682.89,0.0003315,5]
[326444366,1714915851570,-500.0,0.0003315,5]
[326444367,1714915851579,-1747.37,0.0003315,5]
[326444368,1714915851588,-1205.56,0.0003315,5]
[326444369,1714915851597,-500.0,0.0003315,5]
[326444370,1714915851607,-500.0,0.0003315,5]
[326444371,1714915851616,-2215.85,0.0003315,5]
[326444372,1714915851625,-566.84,0.0003315,5]
[326444373,1714915851634,-649.64,0.0003315,5]
[326444374,1714915851644,-500.0,0.0003315,5]
[326444375,1714915851652,-1356.01,0.0003315,5]
[326444376,1714915851661,-500.0,0.0003315,5]
[326444377,1714915851670,-1176.3,0.0003315,5]
[326444378,1714915851679,-1366.45,0.0003315,5]
[326444379,1714915851688,-684.39,0.0003315,5]
[326444380,1714915851697,-311.10726604,0.0003315,5]
[326444381,1714915851706,-920.07,0.0003315,5]
[326444382,1714915851716,-879.33,0.0003315,5]
[326444383,1714915851725,-1031.58,0.0003315,5]
[326444384,1714915851734,-2063.31,0.0003315,5]
[326444385,1714915851744,-2434.24,0.0003315,5]
[326444386,1714915851753,-597.44,0.0003315,5]
[326444387,1714915851763,-713.31,0.0003315,5]
[326444388,1714915851772,-500.0,0.0003315,2]
[326444389,1714915851781,-600.45,0.0003315,5]
[326444390,1714915851791,-952.7,0.0003315,5]
[326444391,1714915851801,-500.0,0.0003315,5]
[326444392,1714915851810,-500.0,0.0003315,5]
[326444393,1714915851820,-802.54,0.0003315,5]
[326444394,1714915851829,-802.41,0.0003315,5]
[326444395,1714915851838,-1024.94,0.0003315,5]
[326444396,1714915851848,-687.56,0.0003315,5]
[326444397,1714915851857,-2386.25,0.0003315,5]
[326444398,1714915851867,-500.0,0.0003315,5]
[326444399,1714915851877,-1223.23,0.0003315,5]
[326444400,1714915851886,-854.56,0.0003315,5]
[326444401,1714915851895,-500.0,0.0003315,5]
[326444402,1714915851904,-500.0,0.0003315,5]
[326444403,1714915851913,-500.0,0.0003315,5]
[326444404,1714915851922,-1748.83,0.0003315,5]
[326444405,1714915851932,-527.62,0.0003315,5]
[326444406,1714915851941,-803.14,0.0003315,5]
[326444407,1714915851950,-3740.0,0.0003315,5]
[326444408,1714915851959,-1004.08,0.0003315,5]
[326444409,1714915851969,-500.0,0.0003315,5]
[326444410,1714915851978,-1502.83,0.0003315,5]
[326444411,1714915851988,-500.0,0.0003315,5]
[326444412,1714915851997,-500.0,0.0003315,5]
[326444413,1714915852006,-500.0,0.0003315,5]
[326444414,1714915852016,-1438.2,0.0003315,5]
[326444415,1714915852158,-500.0,0.0003315,5]
[326444416,1714915852168,-500.0,0.0003315,5]
[326444417,1714915852177,-500.0,0.0003315,5]
[326444418,1714915852186,-500.0,0.0003315,5]
[326444419,1714915852196,-500.0,0.0003315,5]
[326444420,1714915852210,-1909.06,0.0003315,5]
[326444421,1714915852220,-913.79,0.0003315,5]
[326444422,1714915852229,-574.72121185,0.0003315,5]
[326444423,1714915852239,-577.34,0.0003315,5]
[326444424,1714915852249,-500.0,0.0003315,5]
[326444425,1714915852259,-596.69,0.0003315,5]
[326444426,1714915852268,-660.81,0.0003315,5]
[326444427,1714915852278,-717.92,0.0003315,5]
[326444428,1714915852288,-605.11,0.0003315,5]
[326444429,1714915852298,-500.0,0.0003315,5]
[326444430,1714915852307,-500.0,0.0003315,5]
[326444431,1714915852317,-986.28,0.0003315,5]
[326444432,1714915852327,-776.57,0.0003315,5]
[326444433,1714915852338,-1164.45,0.0003315,5]
[326444434,1714915852348,-1851.14,0.0003315,5]
[326444435,1714915852357,-234.91296853,0.0003315,5]
[326444436,1714915852367,-500.0,0.0003315,5]
[326444437,1714915852377,-1222.01,0.0003315,5]
[326444438,1714915852387,-500.0,0.0003315,5]
[326444439,1714915852396,-589.56,0.0003315,5]
[326444440,1714915852406,-801.86,0.0003315,5]
[326444441,1714915852415,-500.0,0.0003315,5]
[326444442,1714915852425,-500.0,0.0003315,5]
[326444443,1714915852434,-1661.78,0.0003315,5]
[326444444,1714915852444,-628.8,0.0003315,5]
[326444445,1714915852454,-500.0,0.0003315,5]
[326444446,1714915852464,-2313.78,0.0003315,5]
[326444447,1714915852473,-1704.0,0.0003315,5]
[326444448,1714915852483,-2846.64,0.0003315,5]
[326444449,1714915852493,-500.0,0.0003315,5]
[326444450,1714915852502,-500.0,0.0003315,5]
[326444451,1714915852511,-500.0,0.0003315,5]
[326444452,1714915852521,-1167.95,0.0003315,5]
[326444453,1714915852530,-1036.27,0.0003315,5]
[326444454,1714915852539,-1244.75,0.0003315,5]
[326444455,1714915852549,-1662.54,0.0003315,5]
[326444456,1714915852558,-500.0,0.0003315,5]
[326444457,1714915852568,-1214.84,0.0003315,5]
[326444458,1714915852577,-1924.39,0.0003315,5]
[326444459,1714915852586,-500.0,0.0003315,5]
[326444460,1714915852596,-2178.68,0.0003315,5]
[326444461,1714915852605,-707.19,0.0003315,5]
[326444462,1714915852614,-538.64,0.0003315,5]
[326444463,1714915852623,-1834.53,0.0003315,5]
[326444464,1714915852633,-500.0,0.0003315,5]
[326444465,1714915852642,-727.02,0.0003315,5]
[326444466,1714915852651,-468.54123007,0.0003315,5]
[326444467,1714915852660,-2359.18,0.0003315,5]
[326444468,1714915852669,-592.28,0.0003315,5]
[326444469,1714915852679,-728.13,0.0003315,5]
[326444470,1714915852688,-500.0,0.0003315,5]
[326444471,1714915852698,-830.03,0.0003315,5]
[326444472,1714915852708,-5000.0,0.0003315,5]
[326444473,1714915852717,-678.1,0.0003315,5]
[326444474,1714915852726,-666.82,0.0003315,5]
[326444475,1714915852736,-500.0,0.0003315,5]
[326444476,1714915852746,-850.81,0.0003315,5]
[326444477,1714915852755,-1351.18,0.0003315,5]
[326444478,1714915852765,-1570.77,0.0003315,5]
[326444479,1714915852774,-500.0,0.0003315,5]
[326444480,1714915852783,-500.0,0.0003315,5]
[326444481,1714915852793,-587.14,0.0003315,5]
[326444482,1714915852802,-1869.51,0.0003315,5]
[326444483,1714915852811,-1759.58,0.0003315,5]
[326444484,1714915852820,-500.0,0.0003315,5]
[326444485,1714915852829,-2359.56,0.0003315,5]
[326444486,1714915852839,-844.39,0.0003315,5]
[326444487,1714915852849,-500.0,0.0003315,5]
[326444488,1714915852858,-1055.67,0.0003315,5]
[326444489,1714915852867,-513.49,0.0003315,5]
[326444490,1714915852877,-1478.45,0.0003315,5]
[326444491,1714915852886,-1000.0,0.0003315,5]
[326444492,1714915852895,-756.48,0.0003315,5]
[326444493,1714915852904,-500.0,0.0003315,5]
[326444494,1714915852913,-973.01,0.0003315,5]
[326444495,1714915852922,-687.56,0.0003315,5]
[326444496,1714915852932,-2401.96,0.0003315,5]
[326444497,1714915852941,-2109.99,0.0003315,5]
[326444498,1714915852950,-500.0,0.0003315,5]
[326444499,1714915852959,-531.18,0.0003315,5]
[326444500,1714915852969,-662.28,0.0003315,5]
[326444501,1714915852978,-1671.18,0.0003315,5]
[326444502,1714915852988,-2339.15,0.0003315,5]
[326444503,1714915852998,-669.8,0.0003315,5]
[326444504,1714915853007,-500.0,0.0003315,5]
[326444505,1714915853016,-774.07,0.0003315,5]
[326444506,1714915853029,-907.67,0.0003315,5]
[326444507,1714915853048,-618.04,0.0003315,5]
[326444508,1714915853063,-1898.13,0.0003315,5]
[326444509,1714915853081,-500.0,0.0003315,5]
[326444510,1714915853103,-1680.72,0.0003315,5]
[326444511,1714915853119,-643.34,0.0003315,5]
[326444512,1714915853136,-500.0,0.0003315,5]
[326444513,1714915853151,-569.24,0.0003315,5]
[326444514,1714915853167,-500.0,0.0003315,5]
[326444515,1714915853185,-775.67,0.0003315,5]
[326444516,1714915853206,-500.0,0.0003315,5]
[326444517,1714915853220,-2117.46,0.0003315,5]
[326444518,1714915853239,-530.04,0.0003315,5]
[326444519,1714915853253,-582.48,0.0003315,5]
[326444520,1714915853269,-263.3065034,0.0003315,5]
[326444521,1714915853285,-500.0,0.0003315,5]
[326444522,1714915853300,-1161.44,0.0003315,5]
[326444523,1714915853314,-500.0,0.0003315,5]
[326444524,1714915853329,-500.0,0.0003315,5]
[326444525,1714915853343,-2232.6,0.0003315,5]
[326444526,1714915853357,-1520.5,0.0003315,5]
[326444527,1714915853372,-1838.26,0.0003315,5]
[326444528,1714915853387,-500.0,0.0003315,5]
[326444529,1714915853401,-500.0,0.0003315,5]
[326444530,1714915853416,-500.0,0.0003315,5]
[326444531,1714915853430,-500.0,0.0003315,5]
[326444532,1714915853445,-500.0,0.0003315,5]
[326444533,1714915853465,-1743.94,0.0003315,5]
[326444534,1714915853479,-556.22,0.0003315,5]
[326444535,1714915853494,-2722.39,0.0003315,5]
[326444536,1714915853510,-1674.63,0.0003315,5]
[326444537,1714915853525,-1022.83,0.0003315,5]
[326444538,1714915853542,-1753.63,0.0003315,5]
[326444539,1714915853557,-834.2,0.0003315,5]
[326444540,1714915853573,-987.05,0.0003315,5]
[326444541,1714915853587,-1091.6,0.0003315,5]
[326444542,1714915853602,-536.38775239,0.0003315,5]
[326444543,1714915853618,-1245.04,0.0003315,5]
[326444544,1714915853633,-1656.75,0.0003315,5]
[326444545,1714915853648,-1452.23,0.0003315,5]
[326444546,1714915853663,-2873.84,0.0003315,5]
[326444547,1714915853678,-500.0,0.0003315,5]
[326444548,1714915853693,-1096.15,0.0003315,5]
[326444549,1714915853708,-500.0,0.0003315,5]
[326444550,1714915853723,-500.0,0.0003315,5]
[326444551,1714915853739,-500.0,0.0003315,5]
[326444552,1714915853753,-500.0,0.0003315,5]
[326444553,1714915853769,-500.0,0.0003315,5]
[326444554,1714915853784,-500.0,0.0003315,5]
[326444555,1714915853799,-711.87,0.0003315,5]
[326444556,1714915853814,-500.0,0.0003315,5]
[326444557,1714915853829,-2175.12,0.0003315,5]
[326444558,1714915853844,-3822.0,0.0003315,5]
[326444559,1714915853858,-500.0,0.0003315,5]
[326444560,1714915853873,-500.0,0.0003315,5]
[326444561,1714915853887,-880.86,0.0003315,5]
[326444562,1714915853900,-1224.63,0.0003315,5]
[326444563,1714915853916,-500.0,0.0003315,5]
[326444564,1714915853931,-500.0,0.0003315,5]
[326444565,1714915853945,-611.5,0.0003315,5]
[326444566,1714915853959,-500.0,0.0003315,5]
[326444567,1714915853979,-1045.1,0.0003315,5]
[326444568,1714915853993,-500.0,0.0003315,5]
[326444569,1714915854008,-1300.91,0.0003315,5]
[326444570,1714915854022,-539.73,0.0003315,5]
[326444571,1714915854037,-1951.33,0.0003315,5]
[326444572,1714915854051,-500.0,0.0003315,5]
[326444573,1714915854066,-1083.01,0.0003315,5]
[326444574,1714915854081,-1376.09,0.0003315,5]
[326444575,1714915854095,-1401.49,0.0003315,5]
[326444576,1714915854110,-831.03,0.0003315,5]
[326444577,1714915854124,-1787.01,0.0003315,5]
[326444578,1714915854139,-660.71,0.0003315,5]
[326444579,1714915854155,-500.0,0.0003315,5]
[326444580,1714915854170,-2124.16,0.0003315,5]
[326444581,1714915854184,-1770.29,0.0003315,5]
[326444582,1714915854201,-500.005,0.0003315,5]
[326444583,1714915854217,-500.0,0.0003315,5]
[326444584,1714915854232,-2331.36,0.0003315,5]
[326444585,1714915854249,-873.01,0.0003315,5]
[326444586,1714915854265,-500.0,0.0003315,5]
[326444587,1714915854280,-274.01837503,0.0003315,5]
[326444588,1714915854295,-926.33,0.0003315,5]
[326444589,1714915854311,-500.0,0.0003315,5]
[326444590,1714915854326,-3815.69,0.0003315,5]
[326444591,1714915854341,-2580.58,0.0003315,5]
[326444592,1714915854357,-1022.84,0.0003315,5]
[326444593,1714915854373,-500.0,0.0003315,5]
[326444594,1714915854388,-822.69,0.0003315,5]
[326444595,1714915854403,-637.03,0.0003315,5]
[326444596,1714915854418,-500.0,0.0003315,5]
[326444597,1714915854618,-500.0,0.0003315,5]
[326444598,1714915854628,-500.0,0.0003315,5]
[326444599,1714915854637,-500.0,0.0003315,5]
[326444600,1714915854647,-730.41,0.0003315,5]
[326444601,1714915854656,-1193.5,0.0003315,5]
[326444602,1714915854666,-2275.05,0.0003315,5]
[326444603,1714915854675,-681.87,0.0003315,5]
[326444604,1714915854684,-2274.67,0.0003315,5]
[326444605,1714915854693,-794.98,0.0003315,5]
[326444606,1714915854702,-501.09334032,0.0003315,5]
[326444607,1714915854712,-515.18,0.0003315,5]
[326444608,1714915854721,-3927.92,0.0003315,5]
[326444609,1714915854731,-652.04,0.0003315,5]
[326444610,1714915854741,-785.34,0.0003315,5]
[326444611,1714915854750,-500.0,0.0003315,5]
[326444612,1714915854759,-766.99,0.0003315,5]
[326444613,1714915854769,-663.69,0.0003315,5]
[326444614,1714915854779,-611.14,0.0003315,5]
[326444615,1714915854788,-594.25,0.0003315,5]
[326444616,1714915854798,-248.93209964,0.0003315,5]
[326444617,1714915854807,-1116.62,0.0003315,5]
[326444618,1714915854816,-5374.57,0.0003315,5]
[326444619,1714915854825,-500.0,0.0003315,5]
[326444620,1714915854835,-643.73,0.0003315,5]
[326444621,1714915854844,-500.0,0.0003315,5]
[326444622,1714915854854,-2565.05,0.0003315,5]
[326444623,1714915854863,-500.0,0.0003315,5]
[326444624,1714915854873,-1343.72,0.0003315,5]
[326444625,1714915854881,-529.9,0.0003315,5]
[326444626,1714915854891,-2553.24,0.0003315,5]
[326444627,1714915854900,-500.0,0.0003315,5]
[326444628,1714915854910,-1752.05,0.0003315,5]
[326444629,1714915854920,-6360.03,0.0003315,5]
[326444630,1714915854929,-1888.12,0.0003315,5]
[326444631,1714915854939,-500.0,0.0003315,5]
[326444632,1714915854948,-13445.74,0.0003315,5]
[326444633,1714915854958,-500.0,0.0003315,5]
[326444634,1714915854967,-787.99,0.0003315,5]
[326444635,1714915854977,-1176.4,0.0003315,5]
[326444636,1714915854987,-500.0,0.0003315,5]
[326444637,1714915854997,-4766.51,0.0003315,5]
[326444638,1714915855006,-500.0,0.0003315,5]
[326444639,1714915855016,-1483.93,0.0003315,5]
[326444640,1714915855026,-21188.73,0.0003315,5]
[326444641,1714915855035,-500.0,0.0003315,5]
[326444642,1714915855045,-519.7,0.0003315,5]
[326444643,1714915855055,-1683.27,0.0003315,5]
[326444644,1714915855064,-826.92,0.0003315,5]
[326444645,1714915855074,-592.84,0.0003315,5]
[326444646,1714915855083,-3339.31,0.0003315,5]
[326444647,1714915855093,-7252.85,0.0003315,5]
[326444648,1714915855102,-500.0,0.0003315,5]
[326444649,1714915855111,-924.39,0.0003315,5]
[326444650,1714915855121,-187.51907308,0.0003315,5]
[326444651,1714915855130,-500.0,0.0003315,5]
[326444652,1714915855139,-2520.84,0.0003315,5]
[326444653,1714915855149,-520.75,0.0003315,5]
[326444654,1714915855159,-5430.33,0.0003315,5]
[326444655,1714915855168,-438.02409671,0.0003315,5]
[326444656,1714915855178,-500.0,0.0003315,5]
[326444657,1714915855187,-5345.4,0.0003315,5]
[326444658,1714915855201,-500.0,0.0003315,5]
[326444659,1714915855211,-500.0,0.0003315,5]
[326444660,1714915855220,-1991.68,0.0003315,5]
[326444661,1714915855229,-53920.09,0.0003315,5]
[326444662,1714915855239,-467.81784053,0.0003315,5]
[326444663,1714915855248,-1714.51,0.0003315,5]
[326444664,1714915855258,-500.0,0.0003315,5]
[326444665,1714915855268,-500.0,0.0003315,5]
[326444666,1714915855278,-1844.66,0.0003315,5]
[326444667,1714915855288,-1895.16,0.0003315,5]
[326444668,1714915855298,-4129.35,0.0003315,5]
[326444669,1714915855308,-36117.33,0.0003315,5]
[326444670,1714915855317,-1482.65,0.0003315,5]
[326444671,1714915855327,-1421.18,0.0003315,5]
[326444672,1714915855336,-600.27,0.0003315,5]
[326444673,1714915855346,-4440.77,0.0003315,5]
[326444674,1714915855356,-502.09129574,0.0003315,5]
[326444675,1714915855365,-1005.54,0.0003315,5]
[326444676,1714915855375,-650.32,0.0003315,5]
[326444677,1714915855384,-500.0,0.0003315,5]
[326444678,1714915855393,-1485.76,0.0003315,5]
[326444679,1714915855403,-4096.05,0.0003315,5]
[326444680,1714915855412,-4019.71,0.0003315,5]
[326444681,1714915855422,-998.05,0.0003315,5]
[326444682,1714915855432,-2578.28,0.0003315,5]
[326444683,1714915855442,-5575.77,0.0003315,5]
[326444684,1714915855451,-500.0,0.0003315,5]
[326444685,1714915855460,-8636.31,0.0003315,5]
[326444686,1714915855470,-500.0,0.0003315,5]
[326444687,1714915855479,-500.0,0.0003315,5]
[326444688,1714915855488,-1285.05,0.0003315,5]
[326444689,1714915855497,-3689.45,0.0003315,5]
[326444690,1714915855507,-531.19,0.0003315,5]
[326444691,1714915855516,-3833.57,0.0003315,5]
[326444692,1714915855526,-1586.24,0.0003315,5]
[326444693,1714915855535,-1238.29,0.0003315,5]
[326444694,1714915855545,-706.62,0.0003315,5]
[326444695,1714915855554,-4259.24,0.0003315,5]
[326444696,1714915855563,-500.0,0.0003315,5]
[326444697,1714915855572,-890.07,0.0003315,5]
[326444698,1714915855582,-877.78,0.0003315,5]
[326444699,1714915855591,-5407.43,0.0003315,5]
[326444700,1714915855600,-12601.05,0.0003315,5]
[326444701,1714915855610,-1819.72,0.0003315,5]
[326444702,1714915855620,-500.0,0.0003315,5]
[326444703,1714915855629,-531.95371713,0.0003315,5]
[326444704,1714915855638,-500.0,0.0003315,5]
[326444705,1714915855647,-500.0,0.0003315,5]
[326444706,1714915855657,-500.0,0.0003315,5]
[326444707,1714915855667,-4446.7,0.0003315,5]
[326444708,1714915855676,-4699.42,0.0003315,5]
[326444709,1714915855686,-1098.5,0.0003315,5]
[326444710,1714915855695,-584.46929555,0.0003315,5]
[326444711,1714915855704,-1426.55,0.0003315,5]
[326444712,1714915855714,-1007.09,0.0003315,5]
[326444713,1714915855723,-3650.32,0.0003315,5]
[326444714,1714915855733,-500.0,0.0003315,5]
[326444715,1714915855743,-500.0,0.0003315,5]
[326444716,1714915855752,-153.78469521,0.0003315,5]
[326444717,1714915855761,-500.0,0.0003315,5]
[326444718,1714915855770,-500.0,0.0003315,5]
[326444719,1714915855780,-500.0,0.0003315,5]
[326444720,1714915855789,-7783.47,0.0003315,5]
[326444721,1714915855799,-653.33,0.0003315,5]
[326444722,1714915855809,-25149.19,0.0003315,5]
[326444723,1714915855819,-500.0,0.0003315,5]
[326444724,1714915855828,-500.0,0.0003315,5]
[326444725,1714915855838,-8319.27,0.0003315,5]
[326444726,1714915855847,-2574.82,0.0003315,5]
[326444727,1714915855856,-500.0,0.0003315,5]
[326444728,1714915855865,-1150.87,0.0003315,5]
[326444729,1714915855875,-9169.92,0.0003315,5]
[326444730,1714915855884,-2150.34,0.0003315,5]
[326444731,1714915855893,-500.0,0.0003315,5]
[326444732,1714915855903,-3608.41,0.0003315,5]
[326444733,1714915855913,-2287.86,0.0003315,5]
[326444734,1714915855922,-524.33,0.0003315,5]
[326444735,1714915855931,-16094.57,0.0003315,5]
[326444736,1714915855941,-1397.44,0.0003315,5]
[326444737,1714915855952,-4666.27,0.0003315,5]
[326444738,1714915855962,-800.06,0.0003315,5]
[326444739,1714915855971,-5867.67,0.0003315,5]
[326444740,1714915855980,-1011.87,0.0003315,5]
[326444741,1714915855990,-500.0,0.0003315,5]
[326444742,1714915855999,-2556.72,0.0003315,5]
[326444743,1714915856008,-500.0,0.0003315,5]
[326444744,1714915856017,-1934.18,0.0003315,5]
[326444745,1714915856026,-500.0,0.0003315,5]
[326444746,1714915856035,-1210.64,0.0003315,5]
[326444747,1714915856045,-4890.28,0.0003315,5]
[326444748,1714915856055,-1046.43,0.0003315,5]
[326444749,1714915856064,-4078.34,0.0003315,5]
[326444750,1714915856073,-1050.31,0.0003315,5]
[326444751,1714915856082,-712.61,0.0003315,5]
[326444752,1714915856091,-5322.09,0.0003315,5]
[326444753,1714915856100,-1365.74,0.0003315,5]
[326444754,1714915856110,-500.0,0.0003315,5]
[326444755,1714915856119,-500.0,0.0003315,5]
[326444756,1714915856128,-871.21,0.0003315,5]
[326444757,1714915856137,-1199.26,0.0003315,5]
[326444758,1714915856147,-500.0,0.0003315,5]
[326444759,1714915856156,-500.0,0.0003315,5]
[326444760,1714915856165,-4022.81,0.0003315,5]
[326444761,1714915856174,-1499.35,0.0003315,5]
[326444762,1714915856183,-1158.44,0.0003315,5]
[326444763,1714915856195,-1682.57,0.0003315,5]
[326444764,1714915856205,-579.64597578,0.0003315,5]
[326444765,1714915856215,-500.0,0.0003315,5]
[326444766,1714915856224,-500.0,0.0003315,5]
[326444767,1714915856235,-4262.11,0.0003315,5]
[326444768,1714915856245,-1409.29,0.0003315,5]
[326444769,1714915856255,-2320.99,0.0003315,5]
[326444770,1714915856264,-3519.46,0.0003315,5]